fUST/lending_fUST_20240204
["ID","MTS","AMOUNT","RATE_DAILY","PERIOD"]
[313244497,1707007231275,-20108.49978064,0.00043431,30]
[313244498,1707007231298,-3779.63090699,0.00043431,30]
[313244499,1707007231321,-5418.54797777,0.00043431,30]
[313244500,1707007231342,-4187.19190191,0.00043431,30]
[313244501,1707007231365,-100000.0,0.00043431,30]
[313244502,1707007231387,-106599.0,0.00043431,30]
[313244503,1707007231408,-39588.61588388,0.00043431,30]
[313244504,1707007231434,-950662.86103782,0.00043431,30]
[313244534,1707007831766,-155.01240099,0.00020056,4]
[313244536,1707007831776,-523.15721576,0.00020056,2]
[313244538,1707007831786,-174.19047391,0.00020056,2]
[313244540,1707007831799,-418.51762617,0.00020056,2]
[313244639,1707007841216,-1582.50624811,0.00020055,2]
[313244641,1707007841226,-58.74644168,0.00020056,2]
[313244643,1707007841236,-820.29034355,0.00020057,2]
[313244645,1707007841245,-167.246797,0.00020504,2]
[313244647,1707007841254,-15151.6518633,0.00020662,2]
[313244649,1707007841262,-278.548209,0.00020777,2]
[313244651,1707007841272,-169.850297,0.00020937,2]
[313244654,1707007841282,-166.666666,0.00021918,2]
[313244657,1707007841292,-294.07631708,0.00022,4]
[313244660,1707007841301,-326.17134224,0.00022,2]
[313244663,1707007841310,-428.50000661,0.00022089,2]
[313244666,1707007841319,-1270.87771683,0.00022187,2]
[313244669,1707007841328,-2045.86444382,0.00022188,2]
[313244671,1707007841338,-7652.24610178,0.00022189,2]
[313244828,1707007842809,-501.1855918,0.00022189,2]
[313245144,1707007845819,-155.01240099,0.00020054,2]
[313245146,1707007845828,-187.35644868,0.00022189,2]
[313245704,1707007851297,155.01240099,0.00019989,3]
[313246948,1707007869293,155.01240099,0.00019989,3]
[313246949,1707007885304,155.01240099,0.00019989,3]
[313246950,1707007905310,155.01240099,0.00019989,3]
[313246951,1707007921312,155.01240099,0.00019989,3]
[313246952,1707007943315,155.01240099,0.00019989,3]
[313246953,1707007965312,155.01240099,0.00019989,3]
[313246955,1707007985815,155.01240099,0.00019989,3]
[313246956,1707008007823,155.01240099,0.00019989,3]
[313246957,1707008025826,155.01240099,0.00019989,3]
[313246958,1707008047920,155.01240099,0.00019989,3]
[313246960,1707008067844,155.01240099,0.00019989,3]
[313246961,1707008083839,155.01240099,0.00019989,3]
[313246962,1707008099903,155.01240099,0.00019989,3]
[313246963,1707008121907,155.01240099,0.00019989,3]
[313246964,1707008141915,155.01240099,0.00019989,3]
[313246965,1707008161900,155.01240099,0.00019989,3]
[313246966,1707008181905,155.01240099,0.00019989,3]
[313246967,1707008185551,261.44545731,0.00020087,7]
[313246968,1707008200007,155.01240099,0.00019989,3]
[313246969,1707008217913,155.01240099,0.00019989,3]
[313246970,1707008219662,238.13985592,0.0001969,2]
[313246971,1707008239913,155.01240099,0.00019989,3]
[313246972,1707008255924,155.01240099,0.00019989,3]
[313246973,1707008273914,155.01240099,0.00019989,3]
[313246974,1707008293910,155.01240099,0.00019989,3]
[313246975,1707008313921,155.01240099,0.00019989,3]
[313246976,1707008333921,155.01240099,0.00019989,3]
[313246977,1707008353923,155.01240099,0.00019989,3]
[313246978,1707008373936,155.01240099,0.00019989,3]
[313246979,1707008393917,155.01240099,0.00019989,3]
[313246980,1707008411972,155.01240099,0.00019989,3]
[313246981,1707008432111,155.01240099,0.00019989,3]
[313246982,1707008445923,155.01240099,0.00019989,3]
[313246983,1707008465923,155.01240099,0.00019989,3]
[313246984,1707008471321,277.231175,0.00019733,2]
[313246985,1707008481927,155.01240099,0.00019989,3]
[313246986,1707008499934,155.01240099,0.00019989,3]
[313246987,1707008515939,155.01240099,0.00019989,3]
[313246988,1707008533933,155.01240099,0.00019989,3]
[313246989,1707008557947,155.01240099,0.00019989,3]
[313246990,1707008566141,1571.5399404,0.00019733,2]
[313246991,1707008579948,155.01240099,0.00019989,3]
[313246992,1707008599913,300.0,0.0002,2]
[313246993,1707008599952,155.01240099,0.00019989,3]
[313246994,1707008607013,24900.0,0.00019733,2]
[313246995,1707008619940,155.01240099,0.00019989,3]
[313246996,1707008641942,155.01240099,0.00019989,3]
[313246997,1707008661971,155.01240099,0.00019989,3]
[313246998,1707008679940,155.01240099,0.00019989,3]
[313246999,1707008697982,155.01240099,0.00019989,3]
[313247000,1707008719946,155.01240099,0.00019989,3]
[313247001,1707008734090,155.01240099,0.00019989,3]
[313247002,1707008744399,604.4218482,0.000189,2]
[313247003,1707008749950,155.01240099,0.00019989,3]
[313247004,1707008768010,155.01240099,0.00019989,3]
[313247005,1707008785972,155.01240099,0.00019989,3]
[313247006,1707008801960,155.01240099,0.00019989,3]
[313247007,1707008819954,155.01240099,0.00019989,3]
[313247008,1707008837957,155.01240099,0.00019989,3]
[313247009,1707008855960,155.01240099,0.00019989,3]
[313247010,1707008877974,155.01240099,0.00019989,3]
[313247011,1707008895969,155.01240099,0.00019989,3]
[313247012,1707008915979,155.01240099,0.00019989,3]
[313247013,1707008930168,155.01240099,0.00019989,3]
[313247017,1707008951977,155.01240099,0.00019989,3]
[313247021,1707008969988,155.01240099,0.00019989,3]
[313247022,1707008985989,155.01240099,0.00019989,3]
[313247023,1707009007984,155.01240099,0.00019989,3]
[313247024,1707009029994,155.01240099,0.00019989,3]
[313247059,1707009031936,-201.51582568,0.00020617,2]
[313247061,1707009031946,-5848.46839529,0.00020618,2]
[313247063,1707009031956,-820.29034355,0.00020897,2]
[313247065,1707009031966,-168.2052575,0.00020899,2]
[313247067,1707009031975,-277.231175,0.0002092,2]
[313247068,1707009031985,-166.708982,0.00021918,2]
[313247070,1707009031994,-294.07631708,0.00022,4]
[313247071,1707009032003,-259.61124135,0.00022102,2]
[313247072,1707009032012,-3977.44618093,0.00022187,2]
[313247073,1707009032023,-5492.92700414,0.00022188,2]
[313247074,1707009032032,-6203.37404454,0.00022189,2]
[313247075,1707009032041,-2683.34,0.00022202,3]
[313247076,1707009032051,-156.79522636,0.0002221,2]
[313247077,1707009032061,-155.32183792,0.0002221,2]
[313247078,1707009032070,-620.45241787,0.0002221,2]
[313247079,1707009032079,-326.17134224,0.0002221,2]
[313247080,1707009032088,-1576.70344052,0.0002221,2]
[313247081,1707009032099,-365.57854264,0.0002221,2]
[313247082,1707009032108,-167.18881955,0.0002221,2]
[313247083,1707009032117,-303.51001634,0.0002221,2]
[313247084,1707009032126,-717.4770118,0.0002221,2]
[313247085,1707009032135,-259.73640251,0.0002221,7]
[313247086,1707009032144,-176.86265737,0.00022211,2]
[313247087,1707009032154,-1109.6477077,0.00022211,2]
[313247088,1707009032163,-36770.77380242,0.00022212,2]
[313247128,1707009038007,-225.77723935,0.00020616,2]
[313247130,1707009038016,-288.33834054,0.00022202,3]
[313247133,1707009038059,-3858.30770334,0.00022202,3]
[313247173,1707009041196,-865.00395612,0.00022202,3]
[313247174,1707009041206,-13229.22619758,0.00022212,2]
[313247175,1707009041215,-1000.0,0.00022212,2]
[313247176,1707009041224,-1000.0,0.00022212,2]
[313247177,1707009041233,-1000.0,0.00022212,2]
[313247178,1707009041243,-1000.0,0.00022212,2]
[313247179,1707009041252,-1000.0,0.00022212,2]
[313247180,1707009041261,-1000.0,0.00022212,2]
[313247181,1707009041270,-1000.0,0.00022212,2]
[313247182,1707009041279,-1000.0,0.00022212,2]
[313247183,1707009041289,-1000.0,0.00022212,2]
[313247184,1707009041298,-388.25840915,0.00022212,2]
[313247399,1707009050041,155.01240099,0.0002001,4]
[313247400,1707009069996,155.01240099,0.0002001,4]
[313247401,1707009086003,155.01240099,0.0002001,4]
[313247402,1707009105999,155.01240099,0.0002001,4]
[313247403,1707009124621,155.01240099,0.0002001,4]
[313247404,1707009140006,155.01240099,0.0002001,4]
[313247405,1707009162058,155.01240099,0.0002001,4]
[313247406,1707009182015,155.01240099,0.0002001,4]
[313247407,1707009198024,155.01240099,0.0002001,4]
[313247408,1707009214085,155.01240099,0.0002001,4]
[313247409,1707009232010,155.01240099,0.0002001,4]
[313247410,1707009254014,155.01240099,0.0002001,4]
[313247411,1707009272022,155.01240099,0.0002001,4]
[313247412,1707009288021,155.01240099,0.0002001,4]
[313247413,1707009304029,155.01240099,0.0002001,4]
[313247414,1707009328029,155.01240099,0.0002001,4]
[313247415,1707009348048,155.01240099,0.0002001,4]
[313247416,1707009364026,155.01240099,0.0002001,4]
[313247417,1707009382058,155.01240099,0.0002001,4]
[313247418,1707009404154,155.01240099,0.0002001,4]
[313247419,1707009424106,155.01240099,0.0002001,4]
[313247420,1707009442035,155.01240099,0.0002001,4]
[313247421,1707009464037,155.01240099,0.0002001,4]
[313247422,1707009484035,155.01240099,0.0002001,4]
[313247423,1707009500040,155.01240099,0.0002001,4]
[313247424,1707009516043,155.01240099,0.0002001,4]
[313247425,1707009534040,155.01240099,0.0002001,4]
[313247426,1707009556058,155.01240099,0.0002001,4]
[313247427,1707009572341,2421.3244864,0.00020003,2]
[313247428,1707009576075,155.01240099,0.0002001,4]
[313247429,1707009596067,155.01240099,0.0002001,4]
[313247430,1707009618091,155.01240099,0.0002001,4]
[313247431,1707009640077,155.01240099,0.0002001,4]
[313247432,1707009656135,155.01240099,0.0002001,4]
[313247433,1707009674095,155.01240099,0.0002001,4]
[313247434,1707009692113,155.01240099,0.0002001,4]
[313247435,1707009710128,155.01240099,0.0002001,4]
[313247436,1707009728106,155.01240099,0.0002001,4]
[313247437,1707009748104,155.01240099,0.0002001,4]
[313247438,1707009770092,155.01240099,0.0002001,4]
[313247440,1707009792099,155.01240099,0.0002001,4]
[313247441,1707009814175,155.01240099,0.0002001,4]
[313247442,1707009832229,155.01240099,0.0002001,4]
[313247443,1707009850106,155.01240099,0.0002001,4]
[313247444,1707009870118,155.01240099,0.0002001,4]
[313247445,1707009888115,155.01240099,0.0002001,4]
[313247446,1707009904119,155.01240099,0.0002001,4]
[313247447,1707009924161,155.01240099,0.0002001,4]
[313247448,1707009946121,155.01240099,0.0002001,4]
[313247449,1707009947053,402.9478988,0.000189,2]
[313247450,1707009970151,155.01240099,0.0002001,4]
[313247451,1707009990155,155.01240099,0.0002001,4]
[313247452,1707010012172,155.01240099,0.0002001,4]
[313247453,1707010034159,155.01240099,0.0002001,4]
[313247454,1707010056149,155.01240099,0.0002001,4]
[313247455,1707010074173,155.01240099,0.0002001,4]
[313247456,1707010092149,155.01240099,0.0002001,4]
[313247457,1707010104773,155.01240099,0.0001991,2]
[313247458,1707010114149,155.01240099,0.0002001,4]
[313247459,1707010136156,155.01240099,0.0002001,4]
[313247469,1707010156154,155.01240099,0.0002001,4]
[313247470,1707010172159,155.01240099,0.0002001,4]
[313247482,1707010188160,155.01240099,0.0002001,4]
[313247483,1707010226156,155.01240099,0.0002001,4]
[313247543,1707010232280,-225.81413439,0.00020055,2]
[313247546,1707010232290,-372.09781941,0.00020056,2]
[313247682,1707010238333,-168.6866838,0.00020042,2]
[313247683,1707010238343,-1095.55691728,0.00020056,2]
[313247684,1707010238354,-432.85647337,0.00020056,2]
[313247685,1707010238365,-3213.66994284,0.00020056,2]
[313247698,1707010241365,-7419.0327987,0.00020056,2]
[313247699,1707010241375,-620.00155002,0.00020615,2]
[313247701,1707010241385,-167.507665,0.00020682,2]
[313247703,1707010241394,-24900.0,0.00021056,2]
[313247705,1707010241403,-14698.11091117,0.00021609,2]
[313247758,1707010246159,155.01240099,0.0002001,4]
[313247773,1707010246286,-459.0,0.00021609,2]
[313247813,1707010259442,5742.24911108,0.0002001,2]
[313247814,1707010259466,42729.23887415,0.0002001,2]
[313247815,1707010262234,155.01240099,0.0002001,4]
[313247816,1707010280149,155.01240099,0.0002001,4]
[313247817,1707010300246,155.01240099,0.0002001,4]
[313247818,1707010320151,155.01240099,0.0002001,4]
[313247819,1707010336149,155.01240099,0.0002001,4]
[313247820,1707010548193,774.91900588,0.00019509,2]
[313247821,1707010607873,24900.0,0.00019522,2]
[313247822,1707010708283,262.032173,0.00019743,2]
[313247823,1707010722986,174.2779771,0.00019743,2]
[313247824,1707010756809,247.7217526,0.00019743,2]
[313247825,1707010972089,159.3861974,0.00020005,2]
[313247834,1707011149359,516.61267058,0.000189,2]
[313247873,1707011432321,-155.01395126,0.00020161,4]
[313247875,1707011432332,-453.95842704,0.00020162,2]
[313247878,1707011432342,-225.81413439,0.00020163,2]
[313247880,1707011432354,-262.62641388,0.00020206,2]
[313247882,1707011432365,-801.33210407,0.00020207,5]
[313247884,1707011432376,-22479.01808763,0.00020208,2]
[313247887,1707011432396,-27520.98191237,0.00020208,2]
[313247890,1707011432407,-292.51587028,0.00020784,2]
[313247892,1707011432417,-11461.5724843,0.00020884,2]
[313247894,1707011432428,-1005.0,0.00021,2]
[313247896,1707011432439,-1232.04838431,0.00021202,2]
[313247898,1707011432449,-692.26861691,0.00021609,2]
[313247901,1707011432460,-175.34345251,0.00021748,2]
[313247903,1707011432471,-7118.8,0.00021828,3]
[313247905,1707011432481,-8542.55,0.00021838,3]
[313247907,1707011432491,-1000.0,0.00021848,2]
[313247909,1707011432500,-1000.0,0.00021848,2]
[313247911,1707011432510,-1000.0,0.00021848,2]
[313247913,1707011432521,-1000.0,0.00021848,2]
[313247915,1707011432532,-1000.0,0.00021848,2]
[313247917,1707011432542,-151.0,0.00021848,2]
[313247919,1707011432553,-166.666666,0.00021918,2]
[313247922,1707011432565,-1146.17469238,0.00021918,2]
[313248137,1707011438374,-437.90229,0.00021918,2]
[313248154,1707011441550,-2816.64277472,0.00021918,2]
[313248155,1707011441562,-298.2893414,0.00022,2]
[313248156,1707011441574,-188.35368,0.00022223,2]
[313248157,1707011441586,-151.0,0.00022223,2]
[313248158,1707011441598,-151.0,0.00022223,2]
[313248159,1707011441610,-200.0,0.00022228,7]
[313248160,1707011441621,-3859.31878035,0.00022233,2]
[313248161,1707011441634,-118.12740058,0.00022233,2]
[313248162,1707011441647,-5283.46078251,0.00022233,2]
[313248163,1707011441658,-155.35680905,0.00022233,2]
[313248164,1707011441668,-1739.7949993,0.00022233,2]
[313248165,1707011441678,-151.0,0.00022233,2]
[313248166,1707011441688,-151.0,0.00022233,2]
[313248167,1707011441698,-151.0,0.00022233,2]
[313248168,1707011441709,-151.0,0.00022233,2]
[313248169,1707011441719,-183.227053,0.00022233,2]
[313248170,1707011441729,-770.1958351,0.00022234,2]
[313248171,1707011441739,-166.666666,0.00022431,2]
[313248172,1707011441749,-306.9764062,0.00022466,2]
[313248173,1707011441759,-175.34345249,0.00022651,2]
[313248174,1707011441893,-771.79549958,0.00022914,2]
[313248175,1707011441903,-170.021016,0.00022914,2]
[313248176,1707011441913,-211.167086,0.00022914,2]
[313248177,1707011441922,-211.167086,0.00022914,2]
[313248178,1707011441931,-166.666666,0.00022944,2]
[313248179,1707011441940,-9961.77802872,0.00023,2]
[313248180,1707011441949,-1262.34623899,0.00023,2]
[313248181,1707011441959,-151.0,0.00023,2]
[313248182,1707011441968,-151.0,0.00023,2]
[313248183,1707011441978,-211.167086,0.00023,2]
[313248184,1707011441987,-211.167086,0.00023,2]
[313248185,1707011441996,-151.0,0.00023,2]
[313248186,1707011442006,-151.0,0.00023,2]
[313248187,1707011442015,-153.9412448,0.00023014,2]
[313248188,1707011442024,-25.77149017,0.00023302,3]
[313248374,1707011446409,-152.595173,0.00021848,2]
[313248375,1707011446419,-166.666666,0.00022717,2]
[313248376,1707011446429,-5906.55850983,0.00023302,3]
[313248377,1707011446439,-455.73083277,0.00023311,2]
[313248378,1707011446448,-22824.36064357,0.00023312,2]
[313248379,1707011446467,-407.50941287,0.00023312,2]
[313248449,1707012632550,-155.01395126,0.00020104,4]
[313248450,1707012632560,-1017.69519953,0.00020104,2]
[313248451,1707012632572,-626.56125077,0.00020104,2]
[313248453,1707012632581,-159.46553757,0.00020105,2]
[313248454,1707012632590,-169.380844,0.00020205,2]
[313248456,1707012632599,-379.32203361,0.0002077,2]
[313248468,1707012632707,-217.27668132,0.00020804,2]
[313248469,1707012632720,-4478.83461966,0.00020845,3]
[313248471,1707012632731,-811.79538034,0.00020845,3]
[313248473,1707012632740,-37041.71922854,0.00020846,2]
[313248475,1707012632750,-19906.99800967,0.00020846,2]
[313248477,1707012632759,-7618.5,0.00020847,3]
[313248479,1707012632768,-20943.24252533,0.00020855,2]
[313248481,1707012632777,-6348.75,0.00020858,3]
[313248483,1707012632786,-54298.24094577,0.00020868,2]
[313248484,1707012632795,-155.18120895,0.00020904,2]
[313248485,1707012632804,-14943.05407496,0.00020906,2]
[313248528,1707012638597,-2149.65490043,0.00020906,2]
[313248529,1707012638608,-1151.55234754,0.00020906,2]
[313248540,1707012641698,-4246.42421328,0.00020906,2]
[313248541,1707012641710,-753.57578672,0.00020906,2]
[313248568,1707012646558,-155.01395126,0.00020698,4]
[313248569,1707012646567,-1655.73867707,0.00020906,2]
[313248571,1707012646577,-2902.53784841,0.00021112,2]
[313248572,1707012646586,-646.61937116,0.00021212,2]
[313248573,1707012646594,-217.27668132,0.00021692,2]
[313248574,1707012646604,-166.666666,0.00021918,2]
[313248575,1707012646613,-19018.36293866,0.000222,2]
[313248576,1707012646622,-371.926252,0.000222,2]
[313248577,1707012646631,-318.44253885,0.000222,2]
[313248578,1707012646643,-53.48371315,0.000222,2]
[313248579,1707012646652,-151.0,0.000222,2]
[313248580,1707012646662,-151.0,0.000222,2]
[313248581,1707012646671,-151.0,0.000222,2]
[313248583,1707012646680,-151.0,0.000222,2]
[313248585,1707012646689,-151.0,0.0002221,2]
[313248586,1707012646698,-151.0,0.0002221,2]
[313248587,1707012646707,-131.81628685,0.0002221,2]
[313248588,1707012646718,-240.10996515,0.0002221,2]
[313248589,1707012646727,-371.926252,0.0002221,2]
[313248590,1707012646736,-151.0,0.0002221,2]
[313248591,1707012646746,-153.319803,0.0002221,2]
[313248592,1707012646755,-151.0,0.0002221,2]
[313248593,1707012646763,-243.180136,0.0002221,2]
[313248594,1707012646772,-19814.65830073,0.0002221,2]
[313248595,1707012646781,-151.0,0.00022212,2]
[313248596,1707012646790,-157.681711,0.00022212,2]
[313248597,1707012646799,-166.666666,0.00022431,2]
[313248598,1707012646808,-217.27668132,0.00022581,2]
[313248599,1707012646817,-691.96477877,0.00022857,2]
[313248600,1707012646826,-166.666666,0.00022944,2]
[313248601,1707012646836,-200.0,0.00022968,7]
[313248602,1707012646845,-21006.58848612,0.00022999,2]
[313248603,1707012646856,-1262.34623899,0.00023,2]
[313248604,1707012646865,-9961.77802872,0.00023,2]
[313248605,1707012646874,-151.0,0.00023,2]
[313248606,1707012646882,-151.0,0.00023,2]
[313248607,1707012646892,-371.926252,0.00023,2]
[313248608,1707012646901,-371.926252,0.00023,2]
[313248609,1707012646911,-371.926252,0.00023,2]
[313248610,1707012646920,-371.926252,0.00023,2]
[313248611,1707012646929,-151.0,0.00023,2]
[313248612,1707012646938,-151.0,0.00023,2]
[313248613,1707012646947,-151.0,0.00023,2]
[313248614,1707012646956,-1000.0,0.00023,2]
[313248615,1707012646965,-1000.0,0.00023,2]
[313248616,1707012646974,-1000.0,0.00023,2]
[313248617,1707012646983,-1000.0,0.00023,2]
[313248618,1707012646992,-1000.0,0.00023,2]
[313248619,1707012647002,-1000.0,0.00023,2]
[313248620,1707012647011,-1000.0,0.00023,2]
[313248621,1707012647020,-1000.0,0.00023,2]
[313248622,1707012647029,-1000.0,0.00023,2]
[313248623,1707012647038,-1000.0,0.00023,2]
[313248624,1707012647048,-1000.0,0.00023,2]
[313248625,1707012647057,-1000.0,0.00023,2]
[313248626,1707012647069,-1000.0,0.00023,2]
[313248627,1707012647079,-1000.0,0.00023,2]
[313248628,1707012647088,-1000.0,0.00023,2]
[313248629,1707012647097,-1000.0,0.00023,2]
[313248630,1707012647106,-1000.0,0.00023,2]
[313248631,1707012647116,-1000.0,0.00023,2]
[313248632,1707012647125,-1000.0,0.00023,2]
[313248633,1707012647134,-1000.0,0.00023,2]
[313248634,1707012647144,-1000.0,0.00023,2]
[313248635,1707012647153,-1000.0,0.00023,2]
[313248636,1707012647163,-1000.0,0.00023,2]
[313248637,1707012647172,-1000.0,0.00023,2]
[313248638,1707012647181,-153.0,0.00023052,2]
[313248639,1707012647190,-150.53,0.00023145,2]
[313248640,1707012647200,-383.9656846,0.00023309,2]
[313248641,1707012647209,-331.49800087,0.0002331,2]
[313248642,1707012647218,-611.62278095,0.0002331,2]
[313248643,1707012647228,-3786.85266449,0.0002331,2]
[313248644,1707012647237,-151.0,0.0002331,2]
[313248645,1707012647246,-26768.12994356,0.00023312,2]
[313248646,1707012647256,-151.0,0.00023312,2]
[313248647,1707012647266,-371.926252,0.00023312,2]
[313248648,1707012647276,-371.926252,0.00023312,2]
[313248649,1707012647285,-151.0,0.00023312,2]
[313248650,1707012647294,-151.0,0.00023312,2]
[313248651,1707012647303,-153.0,0.00023352,2]
[313248652,1707012647312,-153.0,0.00023352,2]
[313248653,1707012647321,-153.0,0.00023452,2]
[313248654,1707012647330,-166.666666,0.00023456,2]
[313248655,1707012647339,-217.27668132,0.00023469,2]
[313248656,1707012647348,-166.666666,0.00023969,2]
[313248657,1707012647357,-379.32203356,0.00024,2]
[313248658,1707012647367,-623.59823894,0.00024,2]
[313248659,1707012647376,-217.27668132,0.00024357,2]
[313248660,1707012647385,-85581.833114,0.00024457,2]
[313248661,1707012647410,-7465.9083354,0.00024457,2]
[313248662,1707012647419,-151.0,0.00024457,2]
[313248663,1707012647428,-371.926252,0.00024457,2]
[313248664,1707012647437,-371.926252,0.00024457,2]
[313248665,1707012647448,-151.0,0.00024457,2]
[313248666,1707012647457,-151.0,0.00024457,2]
[313248667,1707012647466,-166.666666,0.00024482,2]
[313248668,1707012647476,-239.96716537,0.00024557,2]
[313248669,1707012647485,-309.72125088,0.00024655,2]
[313248670,1707012647494,-316.47323329,0.00024655,2]
[313248671,1707012647503,-488.62496948,0.00024655,2]
[313248672,1707012647513,-1217.21659594,0.00024655,2]
[313248722,1707013831675,-155.01395126,0.00021536,4]
[313248723,1707013831685,-175.58923382,0.00021537,2]
[313248724,1707013831693,-155.01395126,0.00021538,2]
[313248725,1707013831702,-12077.551048,0.00021539,2]
[313248726,1707013831715,-166.666666,0.00021931,2]
[313248727,1707013831724,-326.22152252,0.00022356,2]
[313248728,1707013831734,-837.01866271,0.00022357,2]
[313248730,1707013831743,-166.666666,0.00022528,2]
[313248732,1707013831752,-284.49152517,0.00022898,2]
[313248734,1707013831761,-12830.63725267,0.00022998,2]
[313248736,1707013831770,-155.78137772,0.00022998,2]
[313248738,1707013831779,-166.666666,0.00023126,2]
[313248740,1707013831790,-5457.02127741,0.0002331,2]
[313248742,1707013831799,-166.666666,0.00023724,2]
[313248743,1707013831809,-200.0,0.00023869,7]
[313248746,1707013831819,-166.666666,0.00024322,2]
[313248747,1707013831828,-6450.31,0.00024647,3]
[313248749,1707013831839,-5375.26,0.00024647,3]
[313248752,1707013831848,-696.23281089,0.00024654,2]
[313248753,1707013831857,-275.73702169,0.00024654,2]
[313248755,1707013831866,-922.47301462,0.00024655,2]
[313248757,1707013831875,-864.10237399,0.00024655,2]
[313248759,1707013831884,-1367.98900414,0.00024655,2]
[313248761,1707013831893,-155.14515717,0.00024655,2]
[313248762,1707013831903,-162.83073049,0.00024655,2]
[313248764,1707013831912,-322.34023477,0.00024655,2]
[313248766,1707013831921,-1698.8854666,0.00024655,2]
[313248767,1707013831931,-330.18381509,0.00024655,2]
[313248769,1707013831941,-3215.40595025,0.00024655,2]
[313248771,1707013831951,-1278.08556342,0.00024655,2]
[313248773,1707013831960,-179.26850264,0.00024655,2]
[313248775,1707013831969,-157.04477798,0.00024655,2]
[313248776,1707013831979,-155.45950629,0.00024655,2]
[313248777,1707013831989,-622.91172026,0.00024655,2]
[313248778,1707013831998,-1583.71402736,0.00024655,2]
[313248779,1707013832009,-368.1789096,0.00024655,2]
[313248780,1707013832019,-167.59520983,0.00024655,2]
[313248781,1707013832030,-319.11699577,0.00024655,2]
[313248782,1707013832039,-720.16060598,0.00024655,2]
[313248783,1707013832048,-261.09577982,0.00024655,7]
[313248784,1707013832059,-21.12295859,0.00024656,2]
[313248785,1707013832073,-690.03207318,0.00024656,2]
[313248786,1707013832088,-641.6930114,0.00024656,2]
[313248787,1707013832098,-1109.6477077,0.00024656,2]
[313248788,1707013832109,-170.20842274,0.00024657,2]
[313248789,1707013832118,-150.13932499,0.00024657,2]
[313248790,1707013832127,-500.0,0.00024657,2]
[313248791,1707013832136,-533.2887478,0.00024657,2]
[313248792,1707013832145,-522.47711231,0.00024657,2]
[313248793,1707013832154,-516.66641287,0.00024657,2]
[313248794,1707013832163,-68.54959759,0.00024657,2]
[313248795,1707013832175,-1275.08916801,0.00024657,2]
[313248828,1707013841146,-503.01188397,0.00024657,2]
[313248829,1707013841159,-128.86378171,0.00024657,2]
[313248830,1707013841168,-586.4335228,0.00024657,2]
[313248831,1707013841177,-905.59,0.00024657,2]
[313248832,1707013841186,-500.0,0.00024657,2]
[313248833,1707013841196,-1632.94,0.00024657,2]
[313248834,1707013841206,-500.0,0.00024657,2]
[313248835,1707013841214,-560.02,0.00024657,2]
[313248836,1707013841223,-2503.21,0.00024657,2]
[313248837,1707013841233,-181.22882744,0.00024657,2]
[313248838,1707013841241,-5283.95,0.00024657,2]
[313248839,1707013841250,-5459.39,0.00024657,2]
[313248840,1707013841259,-500.0,0.00024657,2]
[313248841,1707013841269,-809.07,0.00024657,2]
[313248842,1707013841278,-518.22,0.00024657,2]
[313248843,1707013841287,-468.80814994,0.00024657,2]
[313248844,1707013841296,-351.14526164,0.00024657,2]
[313248845,1707013841305,-7996.8,0.00024657,2]
[313248846,1707013841315,-1553.71,0.00024657,2]
[313248847,1707013841324,-722.7,0.00024657,2]
[313248848,1707013841333,-517.14918985,0.00024657,2]
[313248849,1707013841342,-3578.33,0.00024657,2]
[313248850,1707013841352,-8457.7,0.00024657,2]
[313248851,1707013841361,-408.65042443,0.00024723,2]
[313248852,1707013841370,-169.76597048,0.00024723,2]
[313248853,1707013841380,-175.0,0.00024723,2]
[313248854,1707013841389,-166.21367939,0.00024723,2]
[313248855,1707013841399,-201.47441164,0.00024723,2]
[313248856,1707013841408,-215.97044886,0.00024831,2]
[313248857,1707013841418,-2617.37555384,0.00024888,2]